[Event "Titled Tuesday Blitz November 22 Late 2022"]
[White "Prem, Pranav"]
[Black "Tarnowska, Aleksandra"]
[WhiteFideId "30901057"]
[BlackFideId "1180967"]
[WhiteElo "1970"]
[BlackElo "1776"]
[Result "1-0"]
[Round "07"]
[TimeControl "180+1"]
[Date "2022.11.23"]
[WhiteClock "0:00:14"]
[BlackClock "0:00:02"]

1. d4 {[%clk 0:03:00]}  d5 {[%clk 0:02:58]} 2. c4 {[%clk 0:03:00]}  c6 {[%clk 0:02:57]} 3. Nf3 {[%clk 0:02:55]}  Nf6 {[%clk 0:02:56]} 4. e3 {[%clk 0:02:53]}  Bf5 {[%clk 0:02:51]} 5. Nc3 {[%clk 0:02:52]}  e6 {[%clk 0:02:48]} 6. Nh4 {[%clk 0:02:52]}  Bg6 {[%clk 0:02:45]} 7. Be2 {[%clk 0:02:47]}  Be7 {[%clk 0:02:33]} 8. O-O {[%clk 0:02:37]}  Nbd7 {[%clk 0:02:30]} 9. Qb3 {[%clk 0:02:27]}  Qb6 {[%clk 0:02:29]} 10. Bd2 {[%clk 0:02:07]}  O-O {[%clk 0:02:08]} 11. Nxg6 {[%clk 0:02:03]}  hxg6 {[%clk 0:02:08]} 12. c5 {[%clk 0:01:54]}  Qxb3 {[%clk 0:01:23]} 13. axb3 {[%clk 0:01:55]}  e5 {[%clk 0:01:23]} 14. b4 {[%clk 0:01:49]}  a6 {[%clk 0:01:17]} 15. Bd1 {[%clk 0:01:30]}  Ne8 {[%clk 0:01:06]} 16. b5 {[%clk 0:01:26]}  Nc7 {[%clk 0:00:58]} 17. bxc6 {[%clk 0:01:12]}  bxc6 {[%clk 0:00:57]} 18. Na4 {[%clk 0:01:12]}  Rfb8 {[%clk 0:00:55]} 19. Be2 {[%clk 0:01:00]}  f5 {[%clk 0:00:46]} 20. Ba5 {[%clk 0:00:51]}  Nb5 {[%clk 0:00:42]} 21. dxe5 {[%clk 0:00:34]}  Nxe5 {[%clk 0:00:40]} 22. Nb6 {[%clk 0:00:28]}  Ra7 {[%clk 0:00:34]} 23. Rfc1 {[%clk 0:00:28]}  Nd7 {[%clk 0:00:28]} 24. Nxd7 {[%clk 0:00:25]}  Rxd7 {[%clk 0:00:29]} 25. Bb6 {[%clk 0:00:24]}  Ra8 {[%clk 0:00:29]} 26. Bxb5 {[%clk 0:00:22]}  cxb5 {[%clk 0:00:20]} 27. c6 {[%clk 0:00:21]}  Rd6 {[%clk 0:00:18]} 28. c7 {[%clk 0:00:21]}  Rxb6 {[%clk 0:00:17]} 29. c8=Q+ {[%clk 0:00:21]}  Rxc8 {[%clk 0:00:18]} 30. Rxc8+ {[%clk 0:00:21]}  Kh7 {[%clk 0:00:18]} 31. Rac1 {[%clk 0:00:22]}  Bf6 {[%clk 0:00:16]} 32. b3 {[%clk 0:00:21]}  a5 {[%clk 0:00:15]} 33. R1c6 {[%clk 0:00:19]}  Rb7 {[%clk 0:00:13]} 34. g3 {[%clk 0:00:19]}  a4 {[%clk 0:00:13]} 35. bxa4 {[%clk 0:00:19]}  bxa4 {[%clk 0:00:13]} 36. Ra6 {[%clk 0:00:20]}  Rb4 {[%clk 0:00:13]} 37. Rca8 {[%clk 0:00:20]}  d4 {[%clk 0:00:12]} 38. exd4 {[%clk 0:00:19]}  Bxd4 {[%clk 0:00:10]} 39. Rxa4 {[%clk 0:00:20]}  Rb1+ {[%clk 0:00:10]} 40. Kg2 {[%clk 0:00:20]}  Bf6 {[%clk 0:00:10]} 41. Ra2 {[%clk 0:00:20]}  Rb3 {[%clk 0:00:09]} 42. Rc2 {[%clk 0:00:20]}  Rd3 {[%clk 0:00:09]} 43. h3 {[%clk 0:00:19]}  Rd1 {[%clk 0:00:09]} 44. Rac8 {[%clk 0:00:19]}  Rd3 {[%clk 0:00:08]} 45. Re2 {[%clk 0:00:19]}  Rb3 {[%clk 0:00:07]} 46. Re3 {[%clk 0:00:18]}  Rb7 {[%clk 0:00:07]} 47. Kf3 {[%clk 0:00:19]}  Bd4 {[%clk 0:00:05]} 48. Rd3 {[%clk 0:00:19]}  Bf6 {[%clk 0:00:05]} 49. Rc2 {[%clk 0:00:19]}  Rb4 {[%clk 0:00:05]} 50. h4 {[%clk 0:00:20]}  Rb5 {[%clk 0:00:04]} 51. Kg2 {[%clk 0:00:20]}  Rb4 {[%clk 0:00:04]} 52. f4 {[%clk 0:00:20]}  Ra4 {[%clk 0:00:04]} 53. Kf3 {[%clk 0:00:21]}  Ra1 {[%clk 0:00:04]} 54. Rc8 {[%clk 0:00:20]}  Rf1+ {[%clk 0:00:04]} 55. Kg2 {[%clk 0:00:20]}  Rb1 {[%clk 0:00:05]} 56. Ra3 {[%clk 0:00:20]}  Rb2+ {[%clk 0:00:05]} 57. Kf3 {[%clk 0:00:20]}  Bd4 {[%clk 0:00:05]} 58. g4 {[%clk 0:00:16]}  Rf2+ {[%clk 0:00:05]} 59. Kg3 {[%clk 0:00:16]}  Rf1 {[%clk 0:00:04]} 60. gxf5 {[%clk 0:00:14]}  gxf5 {[%clk 0:00:04]} 61. Rf8 {[%clk 0:00:14]}  Rg1+ {[%clk 0:00:03]} 62. Kf3 {[%clk 0:00:14]}  Rf1+ {[%clk 0:00:03]} 63. Kg3 {[%clk 0:00:14]}  Rg1+ {[%clk 0:00:02]} 64. Kh2 {[%clk 0:00:15]}  Rg4 {[%clk 0:00:02]} 65. Rxf5 {[%clk 0:00:13]}  Rxh4+ {[%clk 0:00:02]} 66. Kg3 {[%clk 0:00:14]} 1-0


[Site "https://www.chess.com"]

[Event "Titled Tuesday Blitz November 22 Late 2022"]
[White "Rangel, Daniel"]
[Black "Czopor, Maciej"]
[WhiteFideId "2124475"]
[BlackFideId "21805431"]
[WhiteElo "2225"]
[BlackElo "2324"]
[Result "0-1"]
[Round "07"]
[TimeControl "180+1"]
[Date "2022.11.23"]
[WhiteClock "0:00:13"]
[BlackClock "0:00:34"]

1. d4 {[%clk 0:03:00]}  g6 {[%clk 0:02:55]} 2. c4 {[%clk 0:03:01]}  Bg7 {[%clk 0:02:56]} 3. Nc3 {[%clk 0:03:01]}  Nf6 {[%clk 0:02:56]} 4. e4 {[%clk 0:02:59]}  d6 {[%clk 0:02:56]} 5. Nf3 {[%clk 0:03:00]}  O-O {[%clk 0:02:56]} 6. Be2 {[%clk 0:03:01]}  e5 {[%clk 0:02:54]} 7. O-O {[%clk 0:03:01]}  Nbd7 {[%clk 0:02:53]} 8. d5 {[%clk 0:02:59]}  Ne8 {[%clk 0:02:48]} 9. b4 {[%clk 0:02:48]}  h6 {[%clk 0:02:48]} 10. Ba3 {[%clk 0:02:46]}  a5 {[%clk 0:02:46]} 11. Ne1 {[%clk 0:02:36]}  f5 {[%clk 0:02:44]} 12. Nd3 {[%clk 0:02:36]}  Nef6 {[%clk 0:02:41]} 13. Bf3 {[%clk 0:02:31]}  axb4 {[%clk 0:02:23]} 14. Bxb4 {[%clk 0:02:29]}  fxe4 {[%clk 0:02:23]} 15. Nxe4 {[%clk 0:02:28]}  Qe8 {[%clk 0:02:07]} 16. c5 {[%clk 0:02:11]}  Nxe4 {[%clk 0:02:03]} 17. Bxe4 {[%clk 0:02:11]}  Nf6 {[%clk 0:02:03]} 18. Bf3 {[%clk 0:01:59]}  e4 {[%clk 0:02:01]} 19. Re1 {[%clk 0:01:58]}  Qb5 {[%clk 0:01:55]} 20. Rxe4 {[%clk 0:01:18]}  Nxe4 {[%clk 0:01:45]} 21. Bxe4 {[%clk 0:01:19]}  Bxa1 {[%clk 0:01:45]} 22. cxd6 {[%clk 0:01:05]}  cxd6 {[%clk 0:01:33]} 23. Bxd6 {[%clk 0:01:03]}  Bf5 {[%clk 0:01:13]} 24. Bxf8 {[%clk 0:00:58]}  Bxe4 {[%clk 0:01:14]} 25. Qxa1 {[%clk 0:00:52]}  Rxf8 {[%clk 0:01:12]} 26. Nb2 {[%clk 0:00:37]}  Qe2 {[%clk 0:01:12]} 27. f3 {[%clk 0:00:34]}  Qe3+ {[%clk 0:01:07]} 28. Kh1 {[%clk 0:00:33]}  Rxf3 {[%clk 0:01:07]} 29. Nc4 {[%clk 0:00:32]}  Qe2 {[%clk 0:00:40]} 30. Nd2 {[%clk 0:00:15]}  Qxd2 {[%clk 0:00:33]} 31. h4 {[%clk 0:00:13]}  Rh3+ {[%clk 0:00:33]} 32. Kg1 {[%clk 0:00:13]}  Qxg2# {[%clk 0:00:34]} 0-1


[Site "https://www.chess.com"]

[Event "Titled Tuesday Blitz November 22 Late 2022"]
[White "Rasulov, Vugar"]
[Black "Rosen, Eric"]
[WhiteFideId "13402390"]
[BlackFideId "2032562"]
[WhiteElo "2509"]
[BlackElo "2362"]
[Result "1-0"]
[Round "07"]
[TimeControl "180+1"]
[Date "2022.11.22"]
[WhiteClock "0:02:04"]
[BlackClock "0:00:01"]

1. e4 {[%clk 0:03:00]}  c5 {[%clk 0:02:57]} 2. c3 {[%clk 0:03:00]}  d5 {[%clk 0:02:57]} 3. exd5 {[%clk 0:03:00]}  Qxd5 {[%clk 0:02:58]} 4. d4 {[%clk 0:03:01]}  Nf6 {[%clk 0:02:59]} 5. Nf3 {[%clk 0:03:01]}  e6 {[%clk 0:03:00]} 6. Bd3 {[%clk 0:03:01]}  Nc6 {[%clk 0:03:00]} 7. O-O {[%clk 0:03:00]}  Be7 {[%clk 0:03:00]} 8. c4 {[%clk 0:03:00]}  Qd8 {[%clk 0:03:00]} 9. dxc5 {[%clk 0:03:00]}  Bxc5 {[%clk 0:03:00]} 10. Nc3 {[%clk 0:03:01]}  O-O {[%clk 0:03:00]} 11. Qe2 {[%clk 0:03:01]}  b6 {[%clk 0:02:57]} 12. Bg5 {[%clk 0:03:00]}  Bb7 {[%clk 0:02:57]} 13. Rad1 {[%clk 0:02:58]}  Nd4 {[%clk 0:02:24]} 14. Nxd4 {[%clk 0:02:57]}  Bxd4 {[%clk 0:02:25]} 15. Nb5 {[%clk 0:02:52]}  e5 {[%clk 0:02:14]} 16. Bb1 {[%clk 0:02:46]}  h6 {[%clk 0:02:11]} 17. Be3 {[%clk 0:02:45]}  Re8 {[%clk 0:01:57]} 18. Rfe1 {[%clk 0:02:39]}  Qd7 {[%clk 0:01:27]} 19. Nxd4 {[%clk 0:02:28]}  exd4 {[%clk 0:01:21]} 20. Rxd4 {[%clk 0:02:29]}  Qc6 {[%clk 0:00:37]} 21. Qf1 {[%clk 0:02:29]}  Re5 {[%clk 0:00:20]} 22. Red1 {[%clk 0:02:25]}  Rae8 {[%clk 0:00:20]} 23. Rd8 {[%clk 0:02:22]}  a5 {[%clk 0:00:16]} 24. b3 {[%clk 0:02:21]}  a4 {[%clk 0:00:16]} 25. h3 {[%clk 0:02:20]}  Nd7 {[%clk 0:00:13]} 26. R1xd7 {[%clk 0:02:16]}  axb3 {[%clk 0:00:11]} 27. axb3 {[%clk 0:02:16]}  g5 {[%clk 0:00:10]} 28. Rd6 {[%clk 0:02:06]}  Rxd8 {[%clk 0:00:04]} 29. Rxd8+ {[%clk 0:02:05]}  Kg7 {[%clk 0:00:01]} 30. Bd4 {[%clk 0:02:05]}  f6 {[%clk 0:00:02]} 31. Bxe5 {[%clk 0:02:04]}  fxe5 {[%clk 0:00:03]} 32. Rd5 {[%clk 0:02:04]}  g4 {[%clk 0:00:03]} 33. Qd3 {[%clk 0:02:03]}  e4 {[%clk 0:00:02]} 34. Qd4+ {[%clk 0:02:03]}  Kf7 {[%clk 0:00:01]} 35. Bxe4 {[%clk 0:02:04]} 1-0


[Site "https://www.chess.com"]

[Event "Titled Tuesday Blitz November 22 Late 2022"]
[White "Remolar Gallen, Jose"]
[Black "Sabar, Ethmane Daouda"]
[WhiteFideId "2215187"]
[BlackFideId "19600097"]
[WhiteElo "2252"]
[BlackElo "1950"]
[Result "0-1"]
[Round "07"]
[TimeControl "180+1"]
[Date "2022.11.23"]
[WhiteClock "0:00:04"]
[BlackClock "0:00:03"]

1. e4 {[%clk 0:02:57]}  c5 {[%clk 0:02:59]} 2. Nf3 {[%clk 0:02:56]}  Nc6 {[%clk 0:03:00]} 3. Bb5 {[%clk 0:02:56]}  Na5 {[%clk 0:02:58]} 4. O-O {[%clk 0:02:40]}  a6 {[%clk 0:02:58]} 5. Be2 {[%clk 0:02:36]}  Nc6 {[%clk 0:02:58]} 6. c3 {[%clk 0:02:35]}  e5 {[%clk 0:02:57]} 7. d4 {[%clk 0:02:31]}  cxd4 {[%clk 0:02:57]} 8. cxd4 {[%clk 0:02:32]}  exd4 {[%clk 0:02:56]} 9. Nxd4 {[%clk 0:02:32]}  Bc5 {[%clk 0:02:37]} 10. Be3 {[%clk 0:02:24]}  Nxd4 {[%clk 0:02:25]} 11. Bxd4 {[%clk 0:02:24]}  Bxd4 {[%clk 0:02:26]} 12. Qxd4 {[%clk 0:02:23]}  Qf6 {[%clk 0:02:27]} 13. e5 {[%clk 0:02:20]}  Qe6 {[%clk 0:02:28]} 14. Bc4 {[%clk 0:02:16]}  Qg6 {[%clk 0:02:24]} 15. Nc3 {[%clk 0:02:11]}  Ne7 {[%clk 0:02:23]} 16. Qc5 {[%clk 0:01:57]}  b6 {[%clk 0:02:07]} 17. Qd6 {[%clk 0:01:44]}  Bb7 {[%clk 0:01:53]} 18. f3 {[%clk 0:01:27]}  Nf5 {[%clk 0:01:33]} 19. Qc7 {[%clk 0:01:21]}  Nh4 {[%clk 0:01:14]} 20. Rf2 {[%clk 0:01:11]}  Bxf3 {[%clk 0:01:00]} 21. Raf1 {[%clk 0:00:45]}  O-O {[%clk 0:00:59]} 22. Qxd7 {[%clk 0:00:40]}  Bxg2 {[%clk 0:00:35]} 23. Bxf7+ {[%clk 0:00:24]}  Rxf7 {[%clk 0:00:33]} 24. Qxf7+ {[%clk 0:00:24]}  Qxf7 {[%clk 0:00:32]} 25. Rxf7 {[%clk 0:00:24]}  Bxf1 {[%clk 0:00:32]} 26. Rxf1 {[%clk 0:00:24]}  Re8 {[%clk 0:00:31]} 27. Rf4 {[%clk 0:00:21]}  Ng6 {[%clk 0:00:31]} 28. Rc4 {[%clk 0:00:18]}  Nxe5 {[%clk 0:00:30]} 29. Rc7 {[%clk 0:00:16]}  b5 {[%clk 0:00:28]} 30. Nd5 {[%clk 0:00:15]}  Nd3 {[%clk 0:00:24]} 31. Ra7 {[%clk 0:00:14]}  Re6 {[%clk 0:00:22]} 32. Nc7 {[%clk 0:00:13]}  Re2 {[%clk 0:00:14]} 33. Rxa6 {[%clk 0:00:12]}  Rxb2 {[%clk 0:00:12]} 34. Ra8+ {[%clk 0:00:11]}  Kf7 {[%clk 0:00:12]} 35. Nd5 {[%clk 0:00:11]}  Ke6 {[%clk 0:00:10]} 36. Nc7+ {[%clk 0:00:09]}  Kf5 {[%clk 0:00:09]} 37. Rb8 {[%clk 0:00:08]}  b4 {[%clk 0:00:09]} 38. Nd5 {[%clk 0:00:07]}  Ke4 {[%clk 0:00:07]} 39. Rb5 {[%clk 0:00:04]}  Kf3 {[%clk 0:00:03]} 0-1


[Site "https://www.chess.com"]

[Event "Titled Tuesday Blitz November 22 Late 2022"]
[White "Reprintsev, Alexander"]
[Black "Machidon, Cristi"]
[WhiteFideId "14100541"]
[BlackFideId "13904590"]
[WhiteElo "2230"]
[BlackElo "2333"]
[Result "1-0"]
[Round "07"]
[TimeControl "180+1"]
[Date "2022.11.23"]
[WhiteClock "0:01:53"]
[BlackClock "0:01:08"]

1. e4 {[%clk 0:02:43]}  d6 {[%clk 0:02:59]} 2. d4 {[%clk 0:02:43]}  Nf6 {[%clk 0:02:59]} 3. Nc3 {[%clk 0:02:43]}  e5 {[%clk 0:02:59]} 4. dxe5 {[%clk 0:02:42]}  dxe5 {[%clk 0:03:00]} 5. Qxd8+ {[%clk 0:02:42]}  Kxd8 {[%clk 0:03:01]} 6. f4 {[%clk 0:02:41]}  Bb4 {[%clk 0:02:58]} 7. Bd2 {[%clk 0:02:37]}  Nc6 {[%clk 0:01:50]} 8. O-O-O {[%clk 0:02:34]}  Ke7 {[%clk 0:01:49]} 9. Nd5+ {[%clk 0:02:26]}  Nxd5 {[%clk 0:01:48]} 10. exd5 {[%clk 0:02:27]}  Bxd2+ {[%clk 0:01:48]} 11. Rxd2 {[%clk 0:02:27]}  Nb4 {[%clk 0:01:39]} 12. a3 {[%clk 0:02:23]}  Na6 {[%clk 0:01:36]} 13. Bxa6 {[%clk 0:02:22]}  bxa6 {[%clk 0:01:37]} 14. fxe5 {[%clk 0:02:22]}  Rd8 {[%clk 0:01:34]} 15. Nf3 {[%clk 0:02:21]}  Bb7 {[%clk 0:01:31]} 16. Rhd1 {[%clk 0:02:20]}  Rd7 {[%clk 0:01:31]} 17. c4 {[%clk 0:02:20]}  Rad8 {[%clk 0:01:29]} 18. Nd4 {[%clk 0:02:18]}  g6 {[%clk 0:01:26]} 19. Kc2 {[%clk 0:02:16]}  Kf8 {[%clk 0:01:20]} 20. Kc3 {[%clk 0:02:16]}  Kg7 {[%clk 0:01:20]} 21. e6 {[%clk 0:02:10]}  Re7 {[%clk 0:01:14]} 22. exf7 {[%clk 0:02:09]}  Rd6 {[%clk 0:01:10]} 23. Ne6+ {[%clk 0:01:55]}  Kxf7 {[%clk 0:01:10]} 24. Rf1+ {[%clk 0:01:54]}  Ke8 {[%clk 0:01:08]} 25. Rf8+ {[%clk 0:01:53]}  Kd7 {[%clk 0:01:08]} 26. Rd8# {[%clk 0:01:53]} 1-0


[Site "https://www.chess.com"]

[Event "Titled Tuesday Blitz November 22 Late 2022"]
[White "Riff, Vincent"]
[Black "Steinberg, Nitzan"]
[WhiteFideId "617776"]
[BlackFideId "2801795"]
[WhiteElo "2369"]
[BlackElo "2491"]
[Result "0-1"]
[Round "07"]
[TimeControl "180+1"]
[Date "2022.11.22"]
[WhiteClock "0:00:50"]
[BlackClock "0:01:41"]

1. Nf3 {[%clk 0:02:37]}  d5 {[%clk 0:02:59]} 2. e3 {[%clk 0:02:36]}  Nf6 {[%clk 0:02:59]} 3. c4 {[%clk 0:02:36]}  e6 {[%clk 0:02:58]} 4. b3 {[%clk 0:02:36]}  a5 {[%clk 0:02:58]} 5. Bb2 {[%clk 0:02:35]}  Be7 {[%clk 0:02:58]} 6. Nc3 {[%clk 0:02:31]}  O-O {[%clk 0:02:58]} 7. Be2 {[%clk 0:02:30]}  c6 {[%clk 0:02:57]} 8. O-O {[%clk 0:02:30]}  Nbd7 {[%clk 0:02:58]} 9. Qc2 {[%clk 0:02:30]}  b6 {[%clk 0:02:55]} 10. Rfd1 {[%clk 0:02:29]}  Bb7 {[%clk 0:02:54]} 11. Rac1 {[%clk 0:02:29]}  Rc8 {[%clk 0:02:52]} 12. Qb1 {[%clk 0:02:28]}  Re8 {[%clk 0:02:52]} 13. Qa1 {[%clk 0:02:28]}  Bd6 {[%clk 0:02:51]} 14. d3 {[%clk 0:02:27]}  e5 {[%clk 0:02:51]} 15. cxd5 {[%clk 0:02:26]}  cxd5 {[%clk 0:02:51]} 16. Nb5 {[%clk 0:02:26]}  Bb8 {[%clk 0:02:51]} 17. d4 {[%clk 0:02:25]}  exd4 {[%clk 0:02:47]} 18. Bxd4 {[%clk 0:02:25]}  Nc5 {[%clk 0:02:43]} 19. Bxf6 {[%clk 0:02:23]}  Qxf6 {[%clk 0:02:43]} 20. Qxf6 {[%clk 0:02:22]}  gxf6 {[%clk 0:02:44]} 21. Nfd4 {[%clk 0:02:19]}  Ba6 {[%clk 0:02:32]} 22. Nc3 {[%clk 0:02:09]}  Bb7 {[%clk 0:02:30]} 23. Nf5 {[%clk 0:01:57]}  Rcd8 {[%clk 0:02:30]} 24. Rd4 {[%clk 0:01:42]}  Be5 {[%clk 0:02:27]} 25. Rg4+ {[%clk 0:01:42]}  Kh8 {[%clk 0:02:28]} 26. Nb5 {[%clk 0:01:41]}  Bc8 {[%clk 0:02:25]} 27. Nh6 {[%clk 0:01:24]}  Bxg4 {[%clk 0:02:20]} 28. Bxg4 {[%clk 0:01:24]}  Kg7 {[%clk 0:02:11]} 29. Nf5+ {[%clk 0:01:24]}  Kf8 {[%clk 0:02:12]} 30. Rd1 {[%clk 0:01:23]}  Ne4 {[%clk 0:02:09]} 31. Bf3 {[%clk 0:01:20]}  Rc8 {[%clk 0:01:59]} 32. Nfd4 {[%clk 0:01:08]}  Rc5 {[%clk 0:01:56]} 33. g3 {[%clk 0:01:05]}  Bxd4 {[%clk 0:01:55]} 34. Nxd4 {[%clk 0:01:05]}  Nc3 {[%clk 0:01:56]} 35. Rd3 {[%clk 0:01:02]}  Nxa2 {[%clk 0:01:54]} 36. Nf5 {[%clk 0:01:01]}  Re5 {[%clk 0:01:49]} 37. Bg4 {[%clk 0:00:58]}  Nc1 {[%clk 0:01:46]} 38. Rd1 {[%clk 0:00:57]}  Nxb3 {[%clk 0:01:46]} 39. f4 {[%clk 0:00:52]}  Re8 {[%clk 0:01:41]} 40. Bf3 {[%clk 0:00:50]}  Rc1 {[%clk 0:01:41]} 0-1


[Site "https://www.chess.com"]

[Event "Titled Tuesday Blitz November 22 Late 2022"]
[White "Rizzo, Tobias"]
[Black "Ibadov, Dashgyn"]
[WhiteFideId "30942691"]
[BlackFideId "24107514"]
[WhiteElo "2314"]
[BlackElo "2208"]
[Result "1-0"]
[Round "07"]
[TimeControl "180+1"]
[Date "2022.11.23"]
[WhiteClock "0:02:05"]
[BlackClock "0:01:04"]

1. d4 {[%clk 0:03:00]}  d5 {[%clk 0:02:54]} 2. Bf4 {[%clk 0:03:00]}  Nf6 {[%clk 0:02:54]} 3. e3 {[%clk 0:03:00]}  c5 {[%clk 0:02:55]} 4. Nc3 {[%clk 0:02:59]}  Nc6 {[%clk 0:02:55]} 5. Nb5 {[%clk 0:02:56]}  Qa5+ {[%clk 0:02:34]} 6. c3 {[%clk 0:02:38]}  cxd4 {[%clk 0:02:00]} 7. exd4 {[%clk 0:02:30]}  e5 {[%clk 0:01:46]} 8. dxe5 {[%clk 0:02:31]}  Ne4 {[%clk 0:01:34]} 9. Qxd5 {[%clk 0:02:28]}  Bf5 {[%clk 0:01:34]} 10. Bc4 {[%clk 0:02:13]}  Bg6 {[%clk 0:01:28]} 11. e6 {[%clk 0:02:05]}  Rd8 {[%clk 0:01:04]} 12. exf7+ {[%clk 0:02:04]}  Ke7 {[%clk 0:01:04]} 13. Qe6# {[%clk 0:02:05]} 1-0


[Site "https://www.chess.com"]

[Event "Titled Tuesday Blitz November 22 Late 2022"]
[White "Romanchuk, Viktor"]
[Black "Prydun, Andriy"]
[WhiteFideId "14109271"]
[BlackFideId "14145898"]
[WhiteElo "2242"]
[BlackElo "2163"]
[Result "1-0"]
[Round "07"]
[TimeControl "180+1"]
[Date "2022.11.23"]
[WhiteClock "0:00:09"]
[BlackClock "0:00:02"]

1. d4 {[%clk 0:03:00]}  Nf6 {[%clk 0:02:59]} 2. c4 {[%clk 0:03:00]}  e6 {[%clk 0:02:59]} 3. Nc3 {[%clk 0:03:01]}  Bb4 {[%clk 0:02:58]} 4. e3 {[%clk 0:03:01]}  O-O {[%clk 0:02:56]} 5. Ne2 {[%clk 0:03:01]}  d5 {[%clk 0:02:54]} 6. a3 {[%clk 0:03:01]}  Be7 {[%clk 0:02:52]} 7. cxd5 {[%clk 0:03:01]}  exd5 {[%clk 0:02:51]} 8. Nf4 {[%clk 0:03:02]}  c6 {[%clk 0:02:50]} 9. Bd3 {[%clk 0:03:02]}  Nbd7 {[%clk 0:02:49]} 10. O-O {[%clk 0:03:02]}  Re8 {[%clk 0:02:47]} 11. f3 {[%clk 0:03:03]}  Bd6 {[%clk 0:02:46]} 12. e4 {[%clk 0:03:01]}  dxe4 {[%clk 0:02:43]} 13. fxe4 {[%clk 0:03:00]}  Qb6 {[%clk 0:02:40]} 14. Bc2 {[%clk 0:02:52]}  Be5 {[%clk 0:02:33]} 15. Nfe2 {[%clk 0:02:49]}  Bb8 {[%clk 0:01:30]} 16. Kh1 {[%clk 0:02:41]}  Nf8 {[%clk 0:01:01]} 17. e5 {[%clk 0:02:17]}  Nd5 {[%clk 0:01:00]} 18. Nxd5 {[%clk 0:02:17]}  cxd5 {[%clk 0:01:00]} 19. Nf4 {[%clk 0:02:17]}  Be6 {[%clk 0:01:00]} 20. Qf3 {[%clk 0:02:07]}  Qc6 {[%clk 0:00:54]} 21. Bb3 {[%clk 0:01:30]}  Rd8 {[%clk 0:00:52]} 22. Be3 {[%clk 0:01:26]}  a6 {[%clk 0:00:49]} 23. Rac1 {[%clk 0:01:25]}  Qd7 {[%clk 0:00:48]} 24. Rf2 {[%clk 0:01:10]}  Ba7 {[%clk 0:00:47]} 25. Rcf1 {[%clk 0:01:10]}  Rac8 {[%clk 0:00:44]} 26. Bc2 {[%clk 0:01:07]}  Ng6 {[%clk 0:00:30]} 27. Nxe6 {[%clk 0:00:58]}  fxe6 {[%clk 0:00:29]} 28. Qg4 {[%clk 0:00:58]}  Rf8 {[%clk 0:00:27]} 29. Bxg6 {[%clk 0:00:44]}  Rxf2 {[%clk 0:00:19]} 30. Bxh7+ {[%clk 0:00:36]}  Kxh7 {[%clk 0:00:18]} 31. Rxf2 {[%clk 0:00:36]}  Kg8 {[%clk 0:00:07]} 32. h3 {[%clk 0:00:35]}  Rf8 {[%clk 0:00:05]} 33. Rxf8+ {[%clk 0:00:31]}  Kxf8 {[%clk 0:00:06]} 34. Kh2 {[%clk 0:00:23]}  Bb6 {[%clk 0:00:06]} 35. Kg3 {[%clk 0:00:22]}  Qf7 {[%clk 0:00:05]} 36. Qf3 {[%clk 0:00:21]}  Ke7 {[%clk 0:00:05]} 37. Qxf7+ {[%clk 0:00:21]}  Kxf7 {[%clk 0:00:06]} 38. Kg4 {[%clk 0:00:21]}  Ba5 {[%clk 0:00:03]} 39. a4 {[%clk 0:00:20]}  b5 {[%clk 0:00:02]} 40. axb5 {[%clk 0:00:20]}  axb5 {[%clk 0:00:03]} 41. b3 {[%clk 0:00:20]}  Bb4 {[%clk 0:00:04]} 42. h4 {[%clk 0:00:20]}  Be7 {[%clk 0:00:04]} 43. h5 {[%clk 0:00:19]}  Bf8 {[%clk 0:00:04]} 44. Bg5 {[%clk 0:00:19]}  Bb4 {[%clk 0:00:04]} 45. Kf3 {[%clk 0:00:19]}  Bc3 {[%clk 0:00:03]} 46. Be3 {[%clk 0:00:19]}  Bb4 {[%clk 0:00:03]} 47. g4 {[%clk 0:00:19]}  Bf8 {[%clk 0:00:04]} 48. Bd2 {[%clk 0:00:19]}  Be7 {[%clk 0:00:04]} 49. g5 {[%clk 0:00:19]}  Bf8 {[%clk 0:00:04]} 50. g6+ {[%clk 0:00:19]}  Kg8 {[%clk 0:00:04]} 51. Bg5 {[%clk 0:00:19]}  Bb4 {[%clk 0:00:03]} 52. Ke3 {[%clk 0:00:19]}  Be1 {[%clk 0:00:03]} 53. Kd3 {[%clk 0:00:18]}  Ba5 {[%clk 0:00:03]} 54. Bd2 {[%clk 0:00:18]}  Bd8 {[%clk 0:00:03]} 55. Bb4 {[%clk 0:00:18]}  Bh4 {[%clk 0:00:02]} 56. Bc5 {[%clk 0:00:17]}  Be1 {[%clk 0:00:02]} 57. Ke2 {[%clk 0:00:17]}  Ba5 {[%clk 0:00:02]} 58. Be7 {[%clk 0:00:14]}  Bc3 {[%clk 0:00:01]} 59. Kd3 {[%clk 0:00:13]}  Be1 {[%clk 0:00:01]} 60. Bd6 {[%clk 0:00:12]}  Ba5 {[%clk 0:00:01]} 61. Ba3 {[%clk 0:00:09]}  Bd8 {[%clk 0:00:01]} 62. Bc1 {[%clk 0:00:09]}  Ba5 {[%clk 0:00:02]} 63. Bd2 {[%clk 0:00:09]}  Bc7 {[%clk 0:00:02]} 64. h6 {[%clk 0:00:09]} 1-0


[Site "https://www.chess.com"]

[Event "Titled Tuesday Blitz November 22 Late 2022"]
[White "Romero Ruscalleda, Josep"]
[Black "Simonovic, Miroslav"]
[WhiteFideId "2231859"]
[BlackFideId "919152"]
[WhiteElo "2183"]
[BlackElo "2043"]
[Result "1/2-1/2"]
[Round "07"]
[TimeControl "180+1"]
[Date "2022.11.23"]
[WhiteClock "0:01:20"]
[BlackClock "0:00:13"]

1. e4 {[%clk 0:03:00]}  c5 {[%clk 0:03:00]} 2. c3 {[%clk 0:03:00]}  d5 {[%clk 0:03:00]} 3. exd5 {[%clk 0:03:01]}  Qxd5 {[%clk 0:03:00]} 4. d4 {[%clk 0:03:01]}  Nc6 {[%clk 0:03:01]} 5. Nf3 {[%clk 0:03:01]}  Bf5 {[%clk 0:03:02]} 6. Be3 {[%clk 0:02:59]}  cxd4 {[%clk 0:03:01]} 7. cxd4 {[%clk 0:02:59]}  Bxb1 {[%clk 0:03:01]} 8. Rxb1 {[%clk 0:02:59]}  e6 {[%clk 0:03:01]} 9. Qa4 {[%clk 0:02:55]}  Bb4+ {[%clk 0:03:00]} 10. Bd2 {[%clk 0:02:42]}  Qe4+ {[%clk 0:02:50]} 11. Be2 {[%clk 0:02:35]}  Qxb1+ {[%clk 0:02:50]} 12. Bd1 {[%clk 0:02:35]}  Qe4+ {[%clk 0:02:41]} 13. Be2 {[%clk 0:02:35]}  Bd6 {[%clk 0:02:16]} 14. Qb5 {[%clk 0:02:27]}  Ne7 {[%clk 0:02:07]} 15. O-O {[%clk 0:02:26]}  a6 {[%clk 0:01:58]} 16. Qc4 {[%clk 0:02:12]}  b5 {[%clk 0:01:53]} 17. Bd3 {[%clk 0:02:12]}  bxc4 {[%clk 0:01:52]} 18. Bxe4 {[%clk 0:02:12]}  O-O {[%clk 0:01:51]} 19. Bc3 {[%clk 0:02:10]}  Nd5 {[%clk 0:01:48]} 20. Bd2 {[%clk 0:02:04]}  f5 {[%clk 0:01:44]} 21. Bb1 {[%clk 0:02:01]}  h6 {[%clk 0:01:44]} 22. Rc1 {[%clk 0:02:01]}  Rfc8 {[%clk 0:01:31]} 23. Rxc4 {[%clk 0:02:00]}  Ncb4 {[%clk 0:01:31]} 24. b3 {[%clk 0:01:53]}  a5 {[%clk 0:01:01]} 25. a3 {[%clk 0:01:52]}  Na6 {[%clk 0:00:54]} 26. Bxa5 {[%clk 0:01:51]}  Bxa3 {[%clk 0:00:47]} 27. g4 {[%clk 0:01:45]}  fxg4 {[%clk 0:00:44]} 28. Ne5 {[%clk 0:01:45]}  Bb4 {[%clk 0:00:42]} 29. Bxb4 {[%clk 0:01:39]}  Rxc4 {[%clk 0:00:42]} 30. bxc4 {[%clk 0:01:35]}  Ndxb4 {[%clk 0:00:42]} 31. Bg6 {[%clk 0:01:35]}  Ra7 {[%clk 0:00:36]} 32. c5 {[%clk 0:01:33]}  Nd5 {[%clk 0:00:21]} 33. c6 {[%clk 0:01:26]}  Ne7 {[%clk 0:00:19]} 34. Bf7+ {[%clk 0:01:25]}  Kh7 {[%clk 0:00:18]} 35. Bxe6 {[%clk 0:01:26]}  Nb4 {[%clk 0:00:13]} 36. d5 {[%clk 0:01:25]}  Nexd5 {[%clk 0:00:13]} 37. Bf5+ {[%clk 0:01:20]}  Kg8 {[%clk 0:00:12]} 38. Be6+ {[%clk 0:01:20]}  Kh8 {[%clk 0:00:12]} 39. Ng6+ {[%clk 0:01:19]}  Kh7 {[%clk 0:00:12]} 40. Nf8+ {[%clk 0:01:19]}  Kh8 {[%clk 0:00:12]} 41. Ng6+ {[%clk 0:01:19]}  Kh7 {[%clk 0:00:13]} 42. Nf8+ {[%clk 0:01:19]}  Kh8 {[%clk 0:00:13]} 43. Ng6+ {[%clk 0:01:20]} 1/2-1/2


[Site "https://www.chess.com"]